bitfinex/quotes_BTCUSD_20211001
["timestamp","ask_amount","ask_price","bid_price","bid_amount"]
[1633053507208,0.024,43754.0,43753.0,0.276189]
[1633053507407,0.024,43754.0,43753.0,0.048]
[1633053508409,0.1,43756.0,43750.0,0.09501803]
[1633053508675,0.15,43756.0,43751.0,1.04693297]
[1633053508810,0.23435819,43758.0,43751.0,1.04693297]
[1633053509011,0.002,43756.0,43751.0,1.04693297]
[1633053509410,0.102,43756.0,43751.0,1.04693297]
[1633053509814,0.102,43756.0,43751.0,1.02693297]
[1633053510012,0.102,43756.0,43752.0,1.02693297]
[1633053510212,0.1,43756.0,43751.0,1.02693297]
[1633053510411,0.1,43756.0,43752.0,1.02693297]
[1633053510613,0.1,43756.0,43753.0,1.02693297]
[1633053510813,0.1,43756.0,43749.0,0.51462871]
[1633053511010,0.121,43756.0,43752.0,0.05]
[1633053511216,0.121,43756.0,43753.0,1.02693297]
[1633053512213,0.1,43756.0,43753.0,1.02693297]
[1633053512412,0.1,43756.0,43749.0,0.99042771]
[1633053512613,0.1,43756.0,43750.0,1.02693297]
[1633053513012,0.101,43756.0,43750.0,1.02693297]
[1633053514214,0.442927,43756.0,43750.0,1.02693297]
[1633053515016,0.450927,43756.0,43750.0,1.07993297]
[1633053515217,0.450927,43756.0,43751.0,1.02693297]
[1633053516418,0.442927,43756.0,43751.0,1.02693297]
[1633053516618,0.442927,43756.0,43752.0,1.02693297]
[1633053516816,0.442927,43756.0,43753.0,1.02693297]
[1633053517016,0.448927,43756.0,43751.0,0.051]
[1633053517217,0.448927,43756.0,43752.0,1.02693297]
[1633053518216,0.442927,43756.0,43752.0,1.02693297]
[1633053518416,0.442927,43756.0,43753.0,1.02693297]
[1633053518618,0.442927,43756.0,43749.0,0.51462871]
[1633053518824,0.442927,43756.0,43750.0,1.02693297]
[1633053518825,0.228661,43753.0,43750.0,1.02693297]
[1633053519028,0.228661,43753.0,43749.0,0.51462871]
[1633053519029,0.00123185,43751.0,43749.0,0.51462871]
[1633053519424,0.00123286,43750.0,43749.0,0.51462871]
[1633053519619,0.17779903,43750.0,43749.0,0.51462871]
[1633053519818,0.68780612,43750.0,43749.0,0.51462871]
[1633053520019,1.06599512,43750.0,43749.0,0.51462871]
[1633053520219,1.40899212,43750.0,43749.0,0.51462871]
[1633053521021,1.44899212,43750.0,43749.0,0.53662871]
[1633053521224,1.09245002,43750.0,43749.0,0.53662871]
[1633053521423,0.32219,43750.0,43749.0,0.53662871]
[1633053521631,0.19,43750.0,43749.0,0.53662871]
[1633053521826,0.457329,43754.0,43749.0,0.76481771]
[1633053522022,0.457329,43754.0,43750.0,0.228189]
[1633053522622,0.457329,43754.0,43751.0,0.20994989]
[1633053522820,0.457329,43754.0,43752.0,0.228189]
[1633053523019,0.497329,43754.0,43752.0,0.228189]
[1633053523220,0.34295,43753.0,43752.0,0.228189]
[1633053523820,0.34295,43753.0,43750.0,0.04]
[1633053524422,0.34295,43753.0,43751.0,0.228189]
[1633053525026,0.35695,43753.0,43751.0,0.255189]
[1633053525823,0.19820387,43753.0,43751.0,0.255189]
[1633053526226,0.18420387,43753.0,43751.0,0.228189]
[1633053527024,0.19820387,43753.0,43751.0,0.027]
[1633053527226,0.38631975,43752.0,43751.0,0.027]
[1633053527427,0.88105875,43752.0,43751.0,0.027]
[1633053527827,0.88105875,43752.0,43749.0,0.51462871]
[1633053527828,0.9025349,43752.0,43749.0,0.90307069]
[1633053528025,0.00122857,43750.0,43749.0,0.90307069]
[1633053528230,0.00122857,43750.0,43742.0,0.15987271]
[1633053528231,0.00125642,43743.0,43742.0,0.15987271]
[1633053528429,0.82904583,43743.0,43742.0,0.15987271]
[1633053528625,0.87904583,43743.0,43742.0,0.15987271]
[1633053528826,1.18438858,43743.0,43742.0,0.15987271]
[1633053529026,1.22838858,43743.0,43742.0,0.19787271]
[1633053529329,1.43904097,43743.0,43742.0,0.19787271]
[1633053529524,1.68904097,43743.0,43742.0,0.19787271]
[1633053530529,1.68904097,43743.0,43742.0,0.15987271]
[1633053530530,1.64504097,43743.0,43742.0,0.15987271]
[1633053530731,1.39504097,43743.0,43742.0,0.15987271]
[1633053530930,1.64504097,43743.0,43742.0,0.15987271]
[1633053531128,1.70676003,43743.0,43742.0,0.15987271]
[1633053532331,1.64376003,43743.0,43742.0,0.15987271]
[1633053533133,1.70876003,43743.0,43742.0,0.15987271]
[1633053534331,1.64376003,43743.0,43742.0,0.15987271]
[1633053534536,1.39376003,43743.0,43742.0,0.15987271]
[1633053534733,1.57930003,43743.0,43742.0,0.15987271]
[1633053534932,1.36864764,43743.0,43742.0,0.15987271]
[1633053535135,1.43364764,43743.0,43742.0,0.15987271]
[1633053535794,1.18364764,43743.0,43742.0,0.15987271]
[1633053536393,1.11864764,43743.0,43742.0,0.15987271]
[1633053536994,1.18564764,43743.0,43742.0,0.15987271]
[1633053537994,1.18318941,43743.0,43742.0,0.15987271]
[1633053538394,1.11618941,43743.0,43742.0,0.15987271]
[1633053538994,1.17218941,43743.0,43742.0,0.15987271]
[1633053540995,1.17718941,43743.0,43742.0,0.15987271]
[1633053541999,1.41630173,43743.0,43742.0,0.15987271]
[1633053542598,1.41630173,43743.0,43742.0,0.05987271]
[1633053542599,1.35530173,43743.0,43742.0,0.05987271]
[1633053542999,1.41930173,43743.0,43742.0,0.05987271]
[1633053543400,1.42791841,43743.0,43742.0,0.05987271]
[1633053544200,0.97325975,43743.0,43742.0,0.05987271]
[1633053544402,0.210801,43743.0,43742.0,0.06111796]
[1633053545006,0.256801,43743.0,43742.0,0.08711796]
[1633053545201,0.35674933,43743.0,43742.0,0.08711796]
[1633053545402,0.72145936,43743.0,43742.0,0.08711796]
[1633053545604,0.87145936,43743.0,43742.0,0.08711796]
[1633053545798,0.68244672,43743.0,43742.0,0.08711796]
[1633053546402,0.63644672,43743.0,43742.0,0.06111796]
[1633053547001,0.63644672,43743.0,43742.0,0.06511796]
[1633053547203,0.69844672,43743.0,43742.0,0.06511796]
[1633053547603,0.59849839,43743.0,43742.0,0.06511796]
[1633053547806,0.062,43743.0,43742.0,0.28831796]
[1633053548011,0.062,43743.0,43742.0,0.51650696]
[1633053548206,0.062,43743.0,43742.0,0.68219706]
[1633053548607,0.38887155,43749.0,43742.0,0.75118801]
[1633053548805,0.38887155,43749.0,43742.0,0.42307827]
[1633053549006,0.38887155,43749.0,43743.0,0.0005301]
[1633053550607,0.43887155,43749.0,43743.0,0.0005301]
[1633053551009,0.45887155,43749.0,43743.0,0.0475301]
[1633053551210,0.45887155,43749.0,43743.0,0.047]
[1633053551809,0.228189,43748.0,43743.0,0.047]
[1633053552208,0.62118,43748.0,43743.0,0.047]
[1633053552411,0.62118,43748.0,43742.0,0.18759722]
[1633053553009,0.66918,43748.0,43742.0,0.22959722]
[1633053553208,0.440991,43748.0,43742.0,0.22959722]
[1633053553410,0.440991,43748.0,43745.0,0.2232]
[1633053553616,0.048,43748.0,43747.0,0.90121122]
[1633053553814,0.048,43748.0,43747.0,1.12993032]
[1633053554209,0.38887155,43749.0,43748.0,0.65]
[1633053554412,0.38887155,43749.0,43748.0,0.32785433]
[1633053554613,0.38887155,43749.0,43748.0,0.74218969]
[1633053555013,0.40487155,43749.0,43748.0,0.79418969]
[1633053555211,0.40487155,43749.0,43748.0,0.97165539]
[1633053555414,0.40487155,43749.0,43748.0,0.79418969]
[1633053555811,0.24614116,43749.0,43748.0,0.79418969]
[1633053556010,0.00124643,43761.0,43749.0,1.51640961]
[1633053556217,1.454371,43764.0,43760.0,0.00129543]
[1633053556218,1.1115,43764.0,43760.0,0.00129543]
[1633053556416,0.228609,43773.0,43761.0,0.29616694]
[1633053556613,0.07775938,43769.0,43761.0,0.17216185]
[1633053556813,0.07775938,43769.0,43761.0,0.41200632]
[1633053557011,0.07775938,43769.0,43761.0,0.45400632]
[1633053557214,0.342856,43766.0,43761.0,0.28237457]
[1633053557411,0.342856,43766.0,43761.0,0.042]
[1633053558211,0.342867,43764.0,43761.0,0.042]
[1633053558411,0.63903805,43764.0,43760.0,0.20824614]
[1633053559010,0.63903805,43764.0,43760.0,0.25124614]
[1633053559210,0.66903805,43764.0,43760.0,0.25124614]
[1633053559611,0.63903805,43764.0,43760.0,0.20824614]
[1633053560010,0.392867,43764.0,43760.0,0.20824614]
[1633053561012,0.422867,43764.0,43760.0,0.25124614]
[1633053561618,0.422867,43764.0,43763.0,1.69133865]
[1633053561813,0.422867,43764.0,43760.0,0.04429543]
[1633053562014,0.342877,43763.0,43760.0,0.04429543]
[1633053562412,0.228189,43762.0,43760.0,0.00129543]
[1633053562614,0.278189,43762.0,43760.0,0.00129543]
[1633053563014,0.36343506,43762.0,43760.0,0.00129543]
[1633053563218,0.342894,43761.0,43760.0,0.05129543]
[1633053563413,0.553695,43761.0,43760.0,0.05129543]
[1633053564015,0.342894,43761.0,43760.0,0.05129543]
[1633053564418,0.43758084,43761.0,43760.0,0.05129543]
[1633053564815,0.66576984,43761.0,43760.0,0.00129543]
[1633053565016,0.571083,43761.0,43760.0,0.00129543]
[1633053565217,0.571083,43761.0,43760.0,0.03929543]
[1633053566017,0.342894,43761.0,43760.0,0.03929543]
[1633053566618,0.342894,43761.0,43760.0,0.00129543]
[1633053567018,0.342894,43761.0,43760.0,0.04129543]
[1633053567622,0.571083,43761.0,43760.0,0.04129543]
[1633053568424,0.571083,43761.0,43760.0,0.00129543]
[1633053569221,0.571083,43761.0,43760.0,0.03929543]
[1633053569823,0.571083,43761.0,43760.0,0.038]
[1633053570430,0.671083,43761.0,43760.0,0.038]
[1633053570630,0.671083,43761.0,43751.0,0.9805]
[1633053570830,0.28668335,43760.0,43751.0,0.9805]
[1633053571133,0.228652,43754.0,43751.0,0.048]
[1633053571325,0.278652,43754.0,43751.0,0.048]
[1633053571724,0.24636529,43753.0,43751.0,0.048]
[1633053572130,0.34636529,43753.0,43751.0,0.048]
[1633053572525,0.1,43753.0,43746.0,0.2839729]
[1633053573124,0.1,43753.0,43749.0,0.46840961]
[1633053573327,0.6216,43754.0,43749.0,0.46840961]
[1633053573527,0.23053769,43752.0,43749.0,0.46840961]
[1633053573731,0.6216,43754.0,43749.0,0.46840961]
[1633053574525,0.6216,43754.0,43749.0,0.41640961]
[1633053574725,0.18847883,43753.0,43749.0,0.41640961]
[1633053575128,0.6216,43754.0,43749.0,0.46840961]
[1633053575329,0.05,43754.0,43749.0,0.46840961]
[1633053575530,0.392929,43756.0,43749.0,0.46840961]
[1633053575933,0.05,43756.0,43749.0,0.46840961]
[1633053576130,0.21542271,43753.0,43749.0,0.46840961]
[1633053576528,0.21542271,43753.0,43749.0,0.41640961]
[1633053576929,0.21542271,43753.0,43750.0,0.228189]
[1633053577533,0.26542271,43753.0,43749.0,0.47540961]
[1633053577731,0.26542271,43753.0,43750.0,0.228189]
[1633053577935,0.26542271,43753.0,43749.0,0.47540961]
[1633053578331,0.26542271,43753.0,43749.0,0.41640961]
[1633053579132,0.26542271,43753.0,43749.0,0.46840961]
[1633053579332,0.342961,43752.0,43749.0,0.46840961]
[1633053580534,0.342961,43752.0,43749.0,0.41640961]
[1633053581198,0.342961,43752.0,43749.0,0.46840961]
[1633053582394,0.342961,43752.0,43749.0,0.41640961]
[1633053583195,0.342961,43752.0,43749.0,0.47040961]
[1633053584396,0.342961,43752.0,43749.0,0.41640961]
[1633053585198,0.342961,43752.0,43749.0,0.46840961]
[1633053586397,0.342961,43752.0,43749.0,0.41640961]
[1633053587206,0.342961,43752.0,43749.0,0.46840961]
[1633053588408,0.342961,43752.0,43749.0,0.41640961]
[1633053589206,0.22512497,43750.0,43749.0,0.46940961]
[1633053590606,0.22512497,43750.0,43749.0,0.41640961]
[1633053591008,0.342968,43751.0,43749.0,0.41640961]
[1633053591209,0.342968,43751.0,43749.0,0.46840961]
[1633053592011,0.19033622,43750.0,43749.0,0.46840961]
[1633053592209,0.342968,43751.0,43749.0,0.46969012]
[1633053592410,0.342968,43751.0,43749.0,0.41769012]
[1633053592609,0.342968,43751.0,43749.0,0.59609957]
[1633053593212,0.342968,43751.0,43749.0,0.64909957]
[1633053593610,0.342968,43751.0,43749.0,0.47069012]
[1633053594213,0.392968,43751.0,43749.0,0.47069012]
[1633053594616,0.392968,43751.0,43749.0,0.41769012]
[1633053595217,0.392968,43751.0,43749.0,0.46669012]
[1633053596617,0.05,43751.0,43749.0,0.41769012]
[1633053597015,0.05,43752.0,43749.0,0.41769012]
[1633053597217,0.05,43752.0,43749.0,0.47069012]
[1633053598419,0.51102045,43756.0,43751.0,0.09787234]
[1633053598420,0.18237945,43756.0,43751.0,0.09787234]
[1633053598619,0.00129187,43761.0,43751.0,0.09787234]
[1633053599221,0.00129187,43761.0,43751.0,0.15487234]
[1633053599420,0.00129187,43761.0,43755.0,0.20916864]
[1633053599421,0.08796071,43760.0,43755.0,0.20916864]
[1633053599620,0.228189,43759.0,43755.0,0.20916864]
[1633053599822,0.278189,43759.0,43755.0,0.20916864]
[1633053600019,0.05,43759.0,43755.0,0.20916864]
[1633053600419,0.228189,43758.0,43755.0,0.20916864]
[1633053600822,0.05,43759.0,43757.0,0.00126673]
[1633053601025,1.683,43765.0,43758.0,0.11725693]
[1633053601223,0.753,43765.0,43759.0,0.19490066]
[1633053601423,1.165,43767.0,43763.0,0.00123303]
[1633053601823,1.39892659,43767.0,43763.0,0.00123303]
[1633053602222,0.23392659,43767.0,43763.0,0.00123303]
[1633053602426,0.28392659,43767.0,43763.0,0.00123303]
[1633053602625,0.07761523,43766.0,43763.0,0.00123303]
[1633053602825,0.228189,43765.0,43763.0,0.00123303]
[1633053603026,0.278189,43765.0,43763.0,0.00123303]
[1633053603229,0.278189,43765.0,43763.0,0.04423303]
[1633053603427,0.278189,43765.0,43763.0,0.043]
[1633053604627,0.342871,43762.0,43754.0,0.00129857]
[1633053604829,0.228578,43764.0,43754.0,0.00129857]
[1633053605036,0.05,43765.0,43760.0,0.18603059]
[1633053605230,0.05,43765.0,43763.0,0.00125769]
[1633053605430,0.00123772,43772.0,43763.0,0.00125769]
[1633053605630,0.07744361,43771.0,43763.0,0.00125769]
[1633053605834,1.23446377,43776.0,43769.0,0.00123593]
[1633053605835,0.13165673,43776.0,43769.0,0.00123593]
[1633053606032,1.0575,43777.0,43769.0,0.14275593]
[1633053606033,0.20068208,43772.0,43769.0,0.14275593]
[1633053606232,0.20068208,43772.0,43771.0,0.17903921]
[1633053606430,0.22851,43777.0,43771.0,0.38091994]
[1633053606629,0.30459893,43776.0,43771.0,0.38091994]
[1633053606830,0.07640094,43775.0,43771.0,0.38091994]
[1633053607031,0.22851,43777.0,43771.0,0.38091994]
[1633053607231,0.22851,43777.0,43771.0,0.22203921]
[1633053607431,0.40917396,43776.0,43771.0,0.043]
[1633053607636,0.22853375,43775.0,43771.0,0.043]
[1633053607832,0.00125581,43773.0,43771.0,0.043]
[1633053608031,0.571028,43772.0,43771.0,0.043]
[1633053608436,0.80832289,43772.0,43771.0,0.043]
[1633053608631,0.228556,43770.0,43767.0,0.18047869]
[1633053609232,0.228556,43770.0,43767.0,0.23147869]
[1633053609433,0.27896075,43770.0,43767.0,0.23147869]
[1633053609632,0.05040475,43770.0,43767.0,0.23147869]
[1633053609832,0.24991574,43768.0,43767.0,0.23147869]
[1633053610238,0.29991574,43768.0,43767.0,0.23147869]
[1633053610432,0.29991574,43768.0,43767.0,0.18047869]
[1633053611037,0.29991574,43768.0,43762.0,0.00123673]
[1633053611246,0.29991574,43768.0,43767.0,0.047]
[1633053611443,0.52810474,43768.0,43767.0,0.047]
[1633053611835,0.62810474,43768.0,43767.0,0.047]
[1633053612038,0.83246028,43768.0,43767.0,0.047]
[1633053612240,1.08524974,43768.0,43767.0,0.047]
[1633053612440,0.52810474,43768.0,43767.0,0.047]
[1633053612636,0.29991574,43768.0,43767.0,0.047]
[1633053612840,0.29991574,43768.0,43762.0,0.00122903]
[1633053613237,0.29991574,43768.0,43767.0,0.051]
[1633053614637,0.00040475,43762.0,43757.0,0.44399481]
[1633053614839,0.00040475,43762.0,43758.0,0.228189]
[1633053615038,0.00040475,43762.0,43758.0,0.2287191]
[1633053615442,0.00040475,43762.0,43758.0,0.228189]
[1633053617241,0.00040475,43762.0,43758.0,0.295189]
[1633053618639,0.00040475,43762.0,43758.0,0.228189]
[1633053619044,0.00040475,43762.0,43756.0,0.00120098]
[1633053619246,0.00040475,43762.0,43758.0,0.059]
[1633053619441,0.22214058,43761.0,43758.0,0.059]
[1633053619841,0.34289,43760.0,43758.0,0.059]
[1633053620042,0.19627837,43759.0,43758.0,0.059]
[1633053620441,0.24627837,43759.0,43758.0,0.059]
[1633053620644,0.24627837,43759.0,43757.0,0.25279244]
[1633053620840,0.24627837,43759.0,43750.0,0.9930989]
[1633053621042,0.09606543,43758.0,43750.0,0.344714]
[1633053621244,0.17539927,43754.0,43750.0,0.3441839]
[1633053621441,0.17539927,43754.0,43751.0,0.228189]
[1633053623246,0.17539927,43754.0,43751.0,0.293189]
[1633053623642,0.18986301,43757.0,43751.0,0.293189]
[1633053624643,0.24116079,43754.0,43751.0,0.293189]
[1633053625244,0.24116079,43754.0,43751.0,0.356189]
[1633053625445,0.00040475,43752.0,43751.0,0.356189]
[1633053627247,0.00040475,43752.0,43751.0,0.421189]
[1633053628245,0.00040475,43752.0,43751.0,0.228189]
[1633053629246,0.00040475,43752.0,43751.0,0.294189]
[1633053630647,0.00040475,43752.0,43751.0,0.228189]
[1633053631347,0.00040475,43752.0,43751.0,0.294189]
[1633053632549,0.00040475,43752.0,43751.0,0.228189]
[1633053633151,0.1,43761.0,43752.0,0.65]
[1633053634259,0.1,43761.0,43760.0,0.228572]
[1633053634260,0.09847918,43761.0,43760.0,0.228572]
[1633053634451,0.09847918,43761.0,43760.0,2.33394005]
[1633053634719,0.09847918,43761.0,43760.0,2.58936935]
[1633053634851,0.2037096,43762.0,43760.0,2.58936935]
[1633053635052,0.2037096,43762.0,43760.0,2.33394005]
[1633053635253,0.2037096,43762.0,43760.0,2.38394005]
[1633053635653,0.5465776,43762.0,43760.0,0.278572]
[1633053635851,0.228189,43761.0,43760.0,0.5340013]
[1633053636255,0.1,43761.0,43760.0,0.5340013]
[1633053636651,0.1,43761.0,43760.0,0.4840013]
[1633053637252,0.1,43761.0,43760.0,0.5340013]
[1633053638251,0.1,43761.0,43760.0,0.5340613]
[1633053638651,0.1,43761.0,43760.0,0.4840613]
[1633053639252,0.10547071,43761.0,43760.0,0.5340613]
[1633053640058,0.31099742,43761.0,43760.0,0.5340613]
[1633053641256,0.31099742,43761.0,43760.0,0.4840613]
[1633053641460,0.31099742,43761.0,43760.0,0.5340613]
[1633053642658,0.31099742,43761.0,43760.0,0.4840613]
[1633053643259,0.31099742,43761.0,43760.0,0.5340613]
[1633053644661,0.31099742,43761.0,43760.0,0.4840613]
[1633053645264,0.31099742,43761.0,43760.0,0.5330613]
[1633053645465,0.31099742,43761.0,43760.0,2.21742033]
[1633053646733,0.31099742,43761.0,43760.0,2.16842033]
[1633053646866,0.31099742,43761.0,43760.0,0.4840613]
[1633053647466,0.31099742,43761.0,43760.0,0.5330613]
[1633053647664,0.31221393,43761.0,43760.0,0.5330613]
[1633053648666,0.31221393,43761.0,43760.0,0.4840613]
[1633053649069,0.31099742,43761.0,43760.0,0.4840613]
[1633053649466,0.31099742,43761.0,43760.0,0.5340613]
[1633053649666,0.10547071,43761.0,43760.0,0.5340613]
[1633053650271,0.00547071,43761.0,43760.0,0.53526229]
[1633053650469,0.00547071,43761.0,43760.0,0.76398139]
[1633053650671,0.00547071,43761.0,43760.0,0.71398139]
[1633053650871,0.00547071,43761.0,43760.0,0.71345129]
[1633053651470,0.00547071,43761.0,43760.0,0.76845129]
[1633053652746,0.00547071,43761.0,43760.0,0.71345129]
[1633053653471,0.00547071,43761.0,43760.0,0.77045129]
[1633053654873,0.00547071,43761.0,43760.0,0.71345129]
[1633053655272,0.00547071,43761.0,43760.0,0.71398139]
[1633053655475,0.00547071,43761.0,43760.0,0.76998139]
[1633053655746,0.00547071,43761.0,43760.0,0.76945129]
[1633053656082,0.00547071,43761.0,43760.0,0.7682503]
[1633053656674,0.00547071,43761.0,43760.0,0.7122503]
[1633053657475,0.00547071,43761.0,43760.0,0.7702503]
[1633053658478,0.00547071,43761.0,43760.0,0.76555479]
[1633053659281,0.00547071,43761.0,43760.0,0.70755479]
[1633053659480,0.00547071,43761.0,43760.0,0.76555479]
[1633053660680,0.00547071,43761.0,43760.0,0.70755479]
[1633053661482,0.00547071,43761.0,43760.0,0.76055479]
[1633053662684,0.00547071,43761.0,43760.0,0.70255479]
[1633053663484,0.00547071,43761.0,43760.0,0.75455479]
[1633053665492,0.00547071,43761.0,43760.0,0.75855479]
[1633053666691,0.00547071,43761.0,43760.0,0.70255479]
[1633053667496,0.00547071,43761.0,43760.0,0.75455479]
[1633053669296,0.00547071,43761.0,43760.0,0.70255479]
[1633053669496,0.00547071,43761.0,43760.0,0.75755479]
[1633053670756,0.00547071,43761.0,43760.0,0.70255479]
[1633053671497,0.00547071,43761.0,43760.0,0.75755479]
[1633053672900,0.00547071,43761.0,43760.0,0.70255479]
[1633053673502,0.00547071,43761.0,43760.0,0.75755479]
[1633053674701,0.00547071,43761.0,43760.0,0.70255479]
[1633053675503,0.00547071,43761.0,43760.0,0.75555479]
[1633053676906,0.00547071,43761.0,43760.0,0.70255479]
[1633053677507,0.00547071,43761.0,43760.0,0.76155479]
[1633053678705,0.00547071,43761.0,43760.0,0.70255479]
[1633053679506,0.00547071,43761.0,43760.0,0.76255479]
[1633053680510,0.00547071,43761.0,43760.0,0.53436579]
[1633053680906,0.00547071,43761.0,43760.0,0.47436579]
[1633053681512,0.00547071,43761.0,43760.0,0.53336579]
[1633053681707,0.00547071,43761.0,43760.0,0.76155479]
[1633053682514,0.00547071,43761.0,43760.0,0.75655479]
[1633053682770,0.00547071,43761.0,43760.0,0.69755479]
[1633053683510,0.00547071,43761.0,43760.0,0.75655479]
[1633053683909,0.00047071,43761.0,43760.0,0.75655479]
[1633053684711,0.00047071,43761.0,43760.0,0.27293649]
[1633053684912,0.00047071,43761.0,43760.0,0.21393649]
[1633053685511,0.00047071,43761.0,43760.0,0.27293649]
[1633053686512,0.00047071,43761.0,43760.0,0.26793649]
[1633053686912,0.00047071,43761.0,43760.0,0.43712549]
[1633053687512,0.00047071,43761.0,43760.0,0.49612549]
[1633053689614,0.00047071,43761.0,43760.0,0.55212549]
[1633053690818,0.00047071,43761.0,43760.0,0.43712549]
[1633053691617,0.00047071,43761.0,43760.0,0.49312549]
[1633053693018,0.00047071,43761.0,43760.0,0.43712549]
[1633053693619,0.00047071,43761.0,43760.0,0.49312549]
[1633053695280,0.00047071,43761.0,43760.0,0.43712549]
[1633053695680,0.00047071,43761.0,43760.0,0.49612549]
[1633053696682,0.00047071,43761.0,43760.0,0.67446214]
[1633053696884,0.00047071,43761.0,43760.0,0.91964141]
[1633053697083,0.00047071,43761.0,43760.0,0.91064141]
[1633053697293,7.1e-07,43761.0,43760.0,0.91064141]
[1633053697492,0.11542818,43770.0,43769.0,0.00248039]
[1633053697493,0.0493094,43770.0,43769.0,0.00248039]
[1633053697692,0.0498878,43770.0,43769.0,0.65396141]
[1633053697890,0.05287045,43770.0,43769.0,1.08922538]
[1633053698088,0.05287045,43770.0,43769.0,1.19303322]
[1633053698289,0.05287045,43770.0,43769.0,1.24303322]
[1633053698488,0.05287045,43770.0,43769.0,1.34303322]
[1633053698890,0.05274758,43770.0,43769.0,1.34303322]
[1633053699290,4.758e-05,43770.0,43769.0,1.68571022]
[1633053699688,4.758e-05,43770.0,43769.0,1.74971022]
[1633053699888,4.758e-05,43770.0,43769.0,1.64977022]
[1633053700088,4.758e-05,43770.0,43769.0,1.54596238]
[1633053700688,0.00291052,43775.0,43772.0,0.2284718]
[1633053700892,0.00291052,43775.0,43774.0,0.22943327]
[1633053701092,0.00291052,43775.0,43774.0,0.49301537]
[1633053701292,0.01527529,43779.0,43775.0,0.7]
[1633053701503,0.01527529,43779.0,43778.0,0.88068494]
[1633053701697,0.0004,43787.0,43779.0,1.05]
[1633053701996,0.00052287,43787.0,43786.0,0.99380798]
[1633053702192,0.0004,43787.0,43786.0,1.40390708]
[1633053702392,0.0004,43787.0,43786.0,1.82239465]
[1633053702791,0.0004,43787.0,43786.0,1.17239465]
[1633053703391,0.0004,43787.0,43786.0,0.73742669]
[1633053703594,0.0004,43787.0,43786.0,0.83655708]
[1633053704393,0.0004,43787.0,43786.0,1.17899221]
[1633053704795,0.0004,43787.0,43786.0,1.11799221]
[1633053705596,0.0004,43787.0,43786.0,1.17999221]
[1633053705995,0.0004,43787.0,43786.0,1.18005221]
[1633053706997,0.0004,43787.0,43786.0,1.11805221]
[1633053707400,0.0004,43787.0,43786.0,0.77549421]
[1633053707600,0.0004,43787.0,43786.0,0.83849421]
[1633053708801,0.0004,43787.0,43786.0,1.18107321]
[1633053709001,0.0004,43787.0,43786.0,1.11807321]
[1633053709205,0.0004,43787.0,43786.0,1.11754311]
[1633053709602,0.0004,43787.0,43786.0,1.18154311]
[1633053710003,0.0004,43787.0,43786.0,0.98223272]
[1633053711005,0.0004,43787.0,43786.0,0.91823272]
[1633053711606,0.0004,43787.0,43786.0,0.98423272]
[1633053713013,0.0004,43787.0,43786.0,0.91823272]
[1633053713609,0.0004,43787.0,43786.0,0.98423272]
[1633053714413,0.0004,43787.0,43786.0,0.91164889]
[1633053715011,0.0004,43787.0,43786.0,0.84564889]
[1633053715611,0.0004,43787.0,43786.0,0.91064889]
[1633053715813,0.0004,43787.0,43786.0,0.90351499]
[1633053716412,0.0004,43787.0,43786.0,0.90298489]
[1633053717015,0.0004,43787.0,43786.0,0.83798489]
[1633053717212,0.01791596,43789.0,43787.0,0.228189]
[1633053717413,0.01791596,43789.0,43788.0,0.02145542]
[1633053717612,0.01791596,43789.0,43788.0,0.24964442]
[1633053717813,0.01791596,43789.0,43788.0,0.29964442]
[1633053718214,0.02044436,43789.0,43787.0,0.45679611]
[1633053718521,0.21699319,43788.0,43786.0,0.06506]
[1633053718715,0.00126597,43787.0,43786.0,0.06506]
[1633053719113,0.6184304,43787.0,43786.0,6e-05]
[1633053719313,0.73035307,43787.0,43777.0,1.1956]
[1633053719516,0.73035307,43787.0,43774.0,0.2284355]
[1633053719517,0.00121614,43779.0,43774.0,0.2284355]
[1633053719715,0.36348976,43779.0,43776.0,0.228099]
[1633053720314,0.36348976,43779.0,43772.0,0.07948631]
[1633053720515,0.70622776,43779.0,43773.0,0.228099]
[1633053720713,0.70622776,43779.0,43770.0,1.1889184]
[1633053720915,0.70622776,43779.0,43771.0,0.456588]
[1633053721112,0.71161341,43779.0,43771.0,0.456588]
[1633053721517,0.342748,43778.0,43771.0,0.228489]
[1633053721720,0.00123211,43772.0,43771.0,0.061]
[1633053722121,0.00123211,43772.0,43771.0,0.289099]
[1633053722314,0.24594068,43776.0,43771.0,0.289099]
[1633053722913,0.24594068,43776.0,43771.0,0.228099]
[1633053723517,0.0012723,43777.0,43771.0,0.228099]
[1633053723721,0.00538565,43779.0,43772.0,0.0005301]
[1633053723917,0.00538565,43779.0,43775.0,1.95320287]
[1633053724118,0.00538565,43779.0,43776.0,0.228099]
[1633053724318,0.00538565,43779.0,43777.0,0.0005301]
[1633053724516,0.00538565,43779.0,43778.0,0.228099]
[1633053725717,0.00538565,43779.0,43778.0,0.286099]
[1633053726919,0.00538565,43779.0,43778.0,0.28737818]
[1633053727117,0.00538565,43779.0,43778.0,0.22937818]
[1633053727780,0.00538565,43779.0,43778.0,0.28537818]
[1633053729518,0.00538565,43779.0,43778.0,0.22437818]
[1633053729718,0.00538565,43779.0,43778.0,0.28537818]
[1633053730922,0.00538565,43779.0,43778.0,0.22437818]
[1633053731722,0.00538565,43779.0,43778.0,0.28237818]
[1633053732726,0.00538565,43779.0,43778.0,0.28290828]
[1633053733124,0.00538565,43779.0,43778.0,0.6283563]
[1633053733328,0.00538565,43779.0,43778.0,0.6485563]
[1633053733527,0.00291054,43781.0,43780.0,0.65]
[1633053733724,0.00291054,43781.0,43780.0,1.54274503]
[1633053733927,0.00291054,43781.0,43780.0,1.83327513]
[1633053734122,0.00291054,43781.0,43780.0,2.33036737]
[1633053734327,0.00291054,43781.0,43780.0,2.55356737]
[1633053734522,0.00291054,43781.0,43780.0,1.90356737]
[1633053735723,0.00291054,43781.0,43780.0,1.96656737]
[1633053735924,0.00291054,43781.0,43780.0,1.7763761]
[1633053736323,0.00291054,43781.0,43780.0,1.59610148]
[1633053736925,0.00291054,43781.0,43780.0,1.53310148]
[1633053737325,0.00291054,43781.0,43780.0,1.63310148]
[1633053737728,0.00291054,43781.0,43780.0,1.69810148]
[1633053737729,0.00336607,43781.0,43780.0,1.69810148]
[1633053737927,0.00336607,43781.0,43780.0,1.89016886]
[1633053738329,0.00336607,43781.0,43780.0,1.69810148]
[1633053738530,0.00336607,43781.0,43780.0,1.59810148]
[1633053738930,0.00336607,43781.0,43780.0,1.53310148]
[1633053739329,0.00336607,43781.0,43780.0,1.71632051]
[1633053739530,0.0038216,43781.0,43780.0,1.71632051]